[Event "GER-chT Youth Countries 2020"]
[Site "Berlin"]
[Date "2020.10.02"]
[Round "5"]
[White "Weishaeutel, Moritz"]
[Black "Goldbeck, Lars"]
[Result "1/2-1/2"]
[ECO "B13"]
[WhiteElo "2222"]
[BlackElo "2273"]
[Annotator "ChessBase"]
[PlyCount "79"]
[EventDate "2020.09.30"]
[EventType "team-tourn"]
[EventRounds "7"]
[EventCountry "GER"]
[SourceTitle "playchess.com"]
[Source "ChessBase"]
[SourceQuality "1"]
[TimeControl "30/5400+30:0"]

1. e4 {[%emt 0:00:00]} c6 {[%emt 0:00:00]} 2. d4 {[%emt 0:00:00]} d5 {[%emt 0:00:00]} 3. exd5 {[%emt 0:00:00]} cxd5 {[%emt 0:00:00]} 4. Bd3 {[%emt 0:00:00]} Nf6 {[%emt 0:00:02]} 5. c3 {[%emt 0:00:00]} Qc7 {[%emt 0:01:02]} 6. h3 {[%emt 0:01:37]} Nc6 {[%emt 0:00:51]} 7. Nf3 {[%emt 0:00:17]} g6 {[%emt 0:00:32]} 8. Qc2 {[%emt 0:00:14]} Nh5 {[%emt 0:00:12]} 9. O-O {[%emt 0:00:28]} Nf4 {[%emt 0:00:42]} 10. Bb5 {[%emt 0:00:24]} Bg7 {[%emt 0:02:54]} 11. Re1 {[%emt 0:01:26]} O-O {[%emt 0:02:25]} 12. Be3 {[%emt 0:01:44]} a6 {[%emt 0:04:50]} 13. Bf1 {[%emt 0:02:09]} Bf5 {[%emt 0:00:02]} 14. Qd2 {[%emt 0:01:01]} Ne6 {[%emt 0:00:01]} 15. Qc1 {[%emt 0:10:59]} Bxb1 {[%emt 0:07:25]} 16. Rxb1 {[%emt 0:01:29]} b5 {[%emt 0:00:15]} 17. g3 {[%emt 0:05:47]} Bf6 {[%emt 0:15:41]} 18. Nh2 {[%emt 0:16:19]} h5 {[%emt 0:05:31]} 19. g4 {[%emt 0:00:26]} hxg4 {[%emt 0:00:40]} 20. hxg4 {[%emt 0:00:01]} Kh7 {[%emt 0:03:02]} 21. Nf3 {[%emt 0:13:34]} Na5 {[%emt 0:04:20]} 22. Bd3 {[%emt 0:10:42]} Nc4 {[%emt 0:01:39]} 23. Bh6 {[%emt 0:00:41]} Qd6 {[%emt 0:05:07]} 24. Bxf8 {[%emt 0:06:55]} Rxf8 {[%emt 0:00:21]} 25. Bxc4 {[%emt 0:00:07]} dxc4 {[%emt 0:01:23]} 26. Qe3 {[%emt 0:01:07]} g5 {[%emt 0:04:10]} 27. Ne5 {[%emt 0:07:54]} Nf4 {[%emt 0:02:33]} 28. b3 {[%emt 0:08:05]} Qe6 {[%emt 0:13:15]} 29. f3 {[%emt 0:00:22]} Kg7 {[%emt 0:04:49]} 30. bxc4 {[%emt 0:00:12]} bxc4 {[%emt 0:00:14]} 31. Rb2 {[%emt 1:32:28]} Rh8 {[%emt 1:30:51]} 32. Rh2 {[%emt 0:00:08]} Rxh2 {[%emt 0:00:14]} 33. Kxh2 {[%emt 0:00:01]} Qc8 {[%emt 0:00:06]} 34. Rh1 {[%emt 0:02:09]} Qb8 {[%emt 0:05:25]} 35. Qd2 {[%emt 0:00:04]} Bxe5 {[%emt 0:02:36]} 36. dxe5 {[%emt 0:00:01]} Ne6 {[%emt 0:02:35]} 37. Qe2 {[%emt 0:02:23]} Nf4 {[%emt 0:00:19]} 38. Qd2 {[%emt 0:00:04]} Ne6 {[%emt 0:00:05]} 39. Qe2 {[%emt 0:00:35]} Nf4 {[%emt 0:02:19]} 40. Qd2 1/2-1/2

[Event "GER-chT Youth Countries 2020"]
[Site "Berlin"]
[Date "2020.10.02"]
[Round "5"]
[White "Knuedel, Torben"]
[Black "Pallas, Sebastian"]
[Result "1/2-1/2"]
[ECO "B95"]
[WhiteElo "2211"]
[BlackElo "2315"]
[Annotator "ChessBase"]
[PlyCount "79"]
[EventDate "2020.09.30"]
[EventType "team-tourn"]
[EventRounds "7"]
[EventCountry "GER"]
[SourceTitle "playchess.com"]
[Source "ChessBase"]
[SourceQuality "1"]
[TimeControl "30/5400+30:0"]

1. e4 {[%emt 0:00:00]} c5 {[%emt 0:00:00]} 2. Nf3 {[%emt 0:00:00]} d6 {[%emt 0:00:01]} 3. d4 {[%emt 0:00:00]} cxd4 {[%emt 0:00:41]} 4. Nxd4 {[%emt 0:00:00]} Nf6 {[%emt 0:00:30]} 5. Nc3 {[%emt 0:00:00]} a6 {[%emt 0:00:32]} 6. Bg5 {[%emt 0:00:00]} e6 {[%emt 0:01:07]} 7. Qf3 {[%emt 0:00:00]} Nbd7 {[%emt 0:08:04]} 8. O-O-O {[%emt 0:00:42]} Qc7 {[%emt 0:00:54]} 9. Qg3 {[%emt 0:04:01]} Be7 {[%emt 0:04:35]} 10. Be2 {[%emt 0:00:30]} b5 {[%emt 0:05:44]} 11. Bxb5 {[%emt 0:00:06]} axb5 {[%emt 0:03:22]} 12. Ndxb5 {[%emt 0:02:45]} Qb8 {[%emt 0:02:46]} 13. Nxd6+ {[%emt 0:00:09]} Bxd6 {[%emt 0:01:37]} 14. Qxd6 {[%emt 0:00:08]} Qxd6 {[%emt 0:05:14]} 15. Rxd6 {[%emt 0:00:13]} Ra5 {[%emt 0:01:54]} 16. Bxf6 {[%emt 0:05:37]} gxf6 {[%emt 0:02:29]} 17. Rhd1 {[%emt 0:05:40]} Ra6 {[%emt 0:04:00]} 18. R6d4 {[%emt 0:03:09]} Rg8 {[%emt 0:03:30]} 19. g3 {[%emt 0:10:20]} Rg5 {[%emt 0:00:28]} 20. b4 {[%emt 0:03:06]} Ke7 {[%emt 0:03:32]} 21. a4 {[%emt 0:02:28]} Rc6 {[%emt 0:08:07]} 22. Nb5 {[%emt 0:13:41]} Nb6 {[%emt 0:05:24]} 23. Na7 {[%emt 0:01:12]} Rc7 {[%emt 0:00:50]} 24. Nb5 {[%emt 0:06:34]} Rc6 {[%emt 0:04:34]} 25. h4 {[%emt 0:02:39]} Rh5 {[%emt 0:04:29]} 26. g4 {[%emt 0:01:46]} Rxb5 {[%emt 0:10:46]} 27. axb5 {[%emt 0:00:19]} Rc7 {[%emt 0:00:05]} 28. g5 {[%emt 0:10:24]} fxg5 {[%emt 0:06:35]} 29. hxg5 {[%emt 0:00:13]} Bd7 {[%emt 0:00:12]} 30. Rh1 {[%emt 0:04:51]} e5 {[%emt 0:00:07]} 31. Rdd1 {[%emt 1:33:04]} Nc4 {[%emt 1:30:14]} 32. Rxh7 {[%emt 0:02:08]} Ra7 {[%emt 0:00:39]} 33. Rxd7+ {[%emt 0:02:08]} Rxd7 {[%emt 0:00:06]} 34. g6 {[%emt 0:00:37]} Kf8 {[%emt 0:01:19]} 35. Rxf7+ Rxf7 {[%emt 0:00:06]} 36. gxf7 {[%emt 0:01:19]} Kxf7 {[%emt 0:00:08]} 37. c3 {[%emt 0:06:14]} Ke6 {[%emt 0:00:26]} 38. Kc2 {[%emt 0:01:23]} Na3+ {[%emt 0:00:26]} 39. Kd3 {[%emt 0:01:02]} Nxb5 {[%emt 0:00:10]} 40. c4 {[%emt 0:00:44]} 1/2-1/2

[Event "GER-chT Youth Countries 2020"]
[Site "Berlin"]
[Date "2020.10.02"]
[Round "5"]
[White "Colbow, Collin"]
[Black "Chassard, Cedric"]
[Result "1-0"]
[ECO "C77"]
[WhiteElo "2210"]
[BlackElo "1916"]
[Annotator "ChessBase"]
[PlyCount "64"]
[EventDate "2020.09.30"]
[EventType "team-tourn"]
[EventRounds "7"]
[EventCountry "GER"]
[SourceTitle "playchess.com"]
[Source "ChessBase"]
[SourceQuality "1"]
[TimeControl "30/5400+30:0"]

1. e4 {[%emt 0:00:00]} e5 {[%emt 0:00:00]} 2. Nf3 {[%emt 0:00:00]} Nc6 {[%emt 0:00:00]} 3. Bb5 {[%emt 0:00:00]} a6 {[%emt 0:00:00]} 4. Ba4 {[%emt 0:00:00]} Nf6 {[%emt 0:00:00]} 5. Nc3 {[%emt 0:00:05]} Be7 {[%emt 0:02:08]} 6. d3 {[%emt 0:15:59]} b5 {[%emt 0:03:21]} 7. Bb3 {[%emt 0:01:59]} d6 {[%emt 0:00:41]} 8. a3 {[%emt 0:00:15]} Na5 {[%emt 0:19:33]} 9. Ba2 {[%emt 0:00:17]} c5 {[%emt 0:00:56]} 10. b4 {[%emt 0:10:47]} cxb4 {[%emt 0:02:50]} 11. axb4 {[%emt 0:00:38]} Nc6 {[%emt 0:00:35]} 12. Nd5 {[%emt 0:00:15]} Nxd5 {[%emt 0:01:06]} 13. Bxd5 {[%emt 0:01:29]} Qc7 {[%emt 0:00:37]} 14. c4 {[%emt 0:06:41]} Bb7 {[%emt 0:02:54]} 15. Qb3 {[%emt 0:03:01]} O-O {[%emt 0:01:13]} 16. O-O {[%emt 0:06:42]} Bf6 {[%emt 0:04:58]} 17. Be3 {[%emt 0:01:55]} Ne7 {[%emt 0:00:30]} 18. Rfc1 {[%emt 0:11:42]} bxc4 {[%emt 0:06:30]} 19. Bxc4 {[%emt 0:06:30]} Qd7 {[%emt 0:01:53]} 20. Ra4 {[%emt 0:01:10]} d5 {[%emt 0:03:19]} 21. exd5 {[%emt 0:01:43]} Bxd5 {[%emt 0:00:52]} 22. Nd2 {[%emt 0:03:46]} Rfc8 {[%emt 0:01:48]} 23. Ne4 {[%emt 0:08:56]} Be6 {[%emt 0:07:00]} 24. Nc5 {[%emt 0:02:32]} Bxc4 {[%emt 0:00:43]} 25. dxc4 {[%emt 0:00:44]} Qc6 {[%emt 0:00:35]} 26. b5 {[%emt 0:02:08]} axb5 {[%emt 0:00:25]} 27. cxb5 {[%emt 0:00:10]} Qd5 {[%emt 0:00:27]} 28. Rxa8 {[%emt 0:00:35]} Rxa8 {[%emt 0:00:40]} 29. b6 {[%emt 0:00:47]} Qxb3 {[%emt 0:01:06]} 30. Nxb3 {[%emt 0:00:03]} Rb8 {[%emt 0:00:19]} 31. Na5 {[%emt 1:30:55]} Kf8 {[%emt 1:30:37]} 32. b7 {[%emt 0:00:20]} Ra8 {[%emt 0:05:19]} 1-0

[Event "GER-chT Youth Countries 2020"]
[Site "Berlin"]
[Date "2020.10.02"]
[Round "5"]
[White "Haack, Kevin"]
[Black "Musiolik, David"]
[Result "1/2-1/2"]
[ECO "A20"]
[WhiteElo "2209"]
[BlackElo "2198"]
[Annotator "ChessBase"]
[PlyCount "150"]
[EventDate "2020.09.30"]
[EventType "team-tourn"]
[EventRounds "7"]
[EventCountry "GER"]
[SourceTitle "playchess.com"]
[Source "ChessBase"]
[SourceQuality "1"]
[TimeControl "30/5400+30:0"]

1. c4 {[%emt 0:00:00]} e5 {[%emt 0:00:00]} 2. g3 {[%emt 0:00:00]} Nf6 {[%emt 0:00:06]} 3. Bg2 {[%emt 0:00:00]} d5 {[%emt 0:00:27]} 4. cxd5 {[%emt 0:00:00]} Nxd5 {[%emt 0:00:05]} 5. Nf3 {[%emt 0:00:00]} Nc6 {[%emt 0:00:45]} 6. O-O {[%emt 0:00:00]} Be7 {[%emt 0:06:30]} 7. d4 {[%emt 0:00:56]} e4 {[%emt 0:06:55]} 8. Ne5 {[%emt 0:00:17]} e3 {[%emt 0:04:40]} 9. Nxc6 {[%emt 0:13:01]} exf2+ {[%emt 0:00:29]} 10. Rxf2 {[%emt 0:00:19]} bxc6 {[%emt 0:00:21]} 11. Qc2 {[%emt 0:05:11]} Qd7 {[%emt 0:04:54]} 12. e4 {[%emt 0:11:43]} Nf6 {[%emt 0:05:12]} 13. e5 {[%emt 0:09:28]} Nd5 {[%emt 0:00:13]} 14. Bh3 Qxh3 {[%emt 0:03:38]} 15. Qxc6+ {[%emt 0:00:21]} Qd7 {[%emt 0:00:11]} 16. Qxa8 {[%emt 0:00:12]} c6 {[%emt 0:03:19]} 17. Qb8 {[%emt 0:03:37]} Nb6 {[%emt 0:04:47]} 18. Be3 {[%emt 0:09:44]} O-O {[%emt 0:02:06]} 19. e6 {[%emt 0:01:38]} Qxe6 {[%emt 0:02:16]} 20. Qe5 {[%emt 0:00:39]} Qd7 {[%emt 0:01:18]} 21. Nc3 {[%emt 0:03:56]} Nc4 {[%emt 0:04:03]} 22. Qf4 {[%emt 0:00:52]} Bb7 {[%emt 0:01:47]} 23. b3 {[%emt 0:06:29]} Nxe3 {[%emt 0:05:02]} 24. Qxe3 {[%emt 0:00:08]} c5 {[%emt 0:00:19]} 25. d5 {[%emt 0:05:35]} Bf6 {[%emt 0:00:27]} 26. Rxf6 {[%emt 0:05:32]} gxf6 {[%emt 0:00:04]} 27. Ne4 {[%emt 0:00:24]} Qe7 {[%emt 0:09:24]} 28. Rf1 {[%emt 0:03:05]} Kg7 {[%emt 0:11:28]} 29. Rxf6 {[%emt 0:06:33]} Qe5 {[%emt 0:01:21]} 30. Qh6+ {[%emt 0:03:59]} Kg8 {[%emt 0:00:09]} 31. Rf5 {[%emt 1:30:18]} Qd4+ {[%emt 1:30:59]} 32. Nf2 {[%emt 0:00:14]} f6 {[%emt 0:00:47]} 33. Qh5 {[%emt 0:02:44]} Rd8 {[%emt 0:06:32]} 34. Qg4+ {[%emt 0:02:08]} Kf7 {[%emt 0:00:57]} 35. Qh5+ {[%emt 0:00:48]} Kg7 {[%emt 0:02:28]} 36. Qg4+ {[%emt 0:03:45]} Qxg4 {[%emt 0:05:20]} 37. Nxg4 {[%emt 0:00:03]} Bc8 {[%emt 0:00:15]} 38. Rf4 {[%emt 0:00:55]} Rxd5 {[%emt 0:00:35]} 39. Ne3 {[%emt 0:02:02]} Rd3 {[%emt 0:01:51]} 40. Nf5+ {[%emt 0:01:34]} Kf8 {[%emt 0:01:07]} 41. g4 {[%emt 0:00:34]} Rd1+ {[%emt 0:03:24]} 42. Kg2 {[%emt 0:00:00]} Rd2+ {[%emt 0:00:00]} 43. Kg3 {[%emt 0:00:00]} Rxa2 {[%emt 0:00:00]} 44. Nd6 {[%emt 0:00:00]} Be6 {[%emt 0:00:00]} 45. Ne4 {[%emt 0:00:00]} Ke7 {[%emt 0:00:00]} 46. Nxc5 {[%emt 0:00:00]} Bf7 {[%emt 0:00:00]} 47. h4 {[%emt 0:00:00]} h6 {[%emt 0:00:00]} 48. Kf3 {[%emt 0:00:00]} Rc2 {[%emt 0:00:00]} 49. b4 {[%emt 0:00:00]} a5 {[%emt 0:00:00]} 50. Na4 {[%emt 0:00:00]} Bd5+ {[%emt 0:00:00]} 51. Kg3 {[%emt 0:00:00]} axb4 {[%emt 0:00:41]} 52. Rxb4 {[%emt 0:00:00]} Kf8 {[%emt 0:00:38]} 53. Rb2 {[%emt 0:00:00]} Rc4 {[%emt 0:00:54]} 54. Nb6 {[%emt 0:00:00]} Rc3+ {[%emt 0:00:04]} 55. Kh2 {[%emt 0:00:00]} Be6 {[%emt 0:00:19]} 56. Rg2 {[%emt 0:00:00]} Rb3 {[%emt 0:00:42]} 57. Na4 {[%emt 0:00:52]} Rb4 {[%emt 0:00:31]} 58. Nc3 {[%emt 0:01:04]} Rxg4 {[%emt 0:00:22]} 59. Rxg4 {[%emt 0:00:34]} Bxg4 {[%emt 0:00:04]} 60. Kg3 {[%emt 0:00:15]} Bd7 {[%emt 0:00:26]} 61. Kf4 {[%emt 1:30:05]} Kf7 {[%emt 1:30:19]} 62. Ne4 {[%emt 0:00:12]} Kg6 {[%emt 0:00:16]} 63. Ng3 {[%emt 0:01:01]} Be6 {[%emt 0:00:48]} 64. Ne2 {[%emt 0:01:18]} Bc4 {[%emt 0:00:15]} 65. Ng1 {[%emt 0:01:24]} Kh5 {[%emt 0:01:04]} 66. Kg3 {[%emt 0:00:09]} Bf1 {[%emt 0:00:32]} 67. Kf2 {[%emt 0:00:18]} Bc4 {[%emt 0:01:08]} 68. Kg3 {[%emt 0:00:02]} Bb5 {[%emt 0:00:17]} 69. Nh3 {[%emt 0:00:03]} Kg6 {[%emt 0:00:07]} 70. Nf4+ {[%emt 0:00:18]} Kf5 {[%emt 0:00:13]} 71. Nh5 {[%emt 0:00:12]} Ba4 {[%emt 0:00:50]} 72. Nf4 {[%emt 0:00:07]} Bd1 {[%emt 0:01:11]} 73. Ng2 {[%emt 0:00:06]} Ke4 {[%emt 0:00:16]} 74. Nf4 {[%emt 0:00:02]} f5 {[%emt 0:00:08]} 75. Nh3 {[%emt 0:00:11]} Be2 {[%emt 0:00:56]} 1/2-1/2

[Event "GER-chT Youth Countries 2020"]
[Site "Berlin"]
[Date "2020.10.02"]
[Round "5"]
[White "Post, Hugo"]
[Black "Stelmaszyk, Nico"]
[Result "0-1"]
[ECO "B45"]
[WhiteElo "2209"]
[BlackElo "2301"]
[Annotator "ChessBase"]
[PlyCount "32"]
[EventDate "2020.09.30"]
[EventType "team-tourn"]
[EventRounds "7"]
[EventCountry "GER"]
[SourceTitle "playchess.com"]
[Source "ChessBase"]
[SourceQuality "1"]
[TimeControl "30/5400+30:0"]

1. e4 c5 {[%emt 0:00:00]} 2. Nf3 e6 3. d4 {[%emt 0:00:00]} cxd4 {[%emt 0:00:00]} 4. Nxd4 {[%emt 0:00:12]} Nc6 {[%emt 0:00:00]} 5. Nc3 {[%emt 0:00:00]} Nf6 {[%emt 0:00:00]} 6. Nxc6 {[%emt 0:00:00]} bxc6 {[%emt 0:00:00]} 7. e5 {[%emt 0:00:00]} Nd5 {[%emt 0:00:00]} 8. Ne4 {[%emt 0:11:23]} Bb7 {[%emt 0:00:25]} 9. c4 {[%emt 0:23:09]} Nb4 {[%emt 0:00:12]} 10. a3 {[%emt 0:04:50]} Qa5 11. axb4 {[%emt 0:01:19]} Qxa1 {[%emt 0:01:43]} 12. c5 {[%emt 0:00:30]} Ba6 {[%emt 0:00:30]} 13. Bxa6 {[%emt 0:11:19]} Qxa6 {[%emt 0:11:59]} 14. Bg5 {[%emt 0:13:17]} h6 {[%emt 0:01:29]} 15. Bd2 {[%emt 0:02:47]} Qd3 16. Nc3 a5 0-1

[Event "GER-chT Youth Countries 2020"]
[Site "Berlin"]
[Date "2020.10.02"]
[Round "5"]
[White "Fromm, Marius"]
[Black "Matthes, Aaron"]
[Result "1-0"]
[ECO "C50"]
[WhiteElo "2190"]
[BlackElo "2198"]
[Annotator "ChessBase"]
[PlyCount "57"]
[EventDate "2020.09.30"]
[EventType "team-tourn"]
[EventRounds "7"]
[EventCountry "GER"]
[SourceTitle "playchess.com"]
[Source "ChessBase"]
[SourceQuality "1"]
[TimeControl "30/5400+30:0"]

1. e4 {[%emt 0:00:00]} e5 {[%emt 0:00:00]} 2. Nf3 {[%emt 0:00:00]} Nc6 {[%emt 0:00:00]} 3. Bc4 {[%emt 0:00:00]} Nf6 {[%emt 0:00:00]} 4. d3 {[%emt 0:00:00]} Bc5 {[%emt 0:00:00]} 5. O-O {[%emt 0:00:08]} a6 {[%emt 0:00:01]} 6. c3 {[%emt 0:01:42]} d6 {[%emt 0:00:10]} 7. a4 {[%emt 0:00:42]} Ba7 {[%emt 0:00:07]} 8. Re1 {[%emt 0:00:55]} O-O {[%emt 0:00:20]} 9. h3 {[%emt 0:00:12]} h6 {[%emt 0:00:05]} 10. Nbd2 {[%emt 0:00:38]} Re8 {[%emt 0:00:11]} 11. Nf1 {[%emt 0:19:10]} Be6 {[%emt 0:00:41]} 12. Bxe6 {[%emt 0:00:25]} Rxe6 {[%emt 0:00:05]} 13. Be3 {[%emt 0:00:46]} Bxe3 {[%emt 0:02:07]} 14. Nxe3 {[%emt 0:00:05]} d5 {[%emt 0:00:09]} 15. Qc2 {[%emt 0:10:02]} Qd7 {[%emt 0:09:04]} 16. b4 {[%emt 0:02:18]} Ne7 {[%emt 0:05:35]} 17. exd5 {[%emt 0:05:32]} Nfxd5 {[%emt 0:01:13]} 18. Nc4 {[%emt 0:02:56]} f6 {[%emt 0:00:57]} 19. d4 {[%emt 0:07:59]} exd4 {[%emt 0:30:36]} 20. Rxe6 {[%emt 0:00:22]} Qxe6 {[%emt 0:00:16]} 21. Nxd4 {[%emt 0:00:07]} Qf7 {[%emt 0:02:02]} 22. Na5 {[%emt 0:02:57]} b6 {[%emt 0:05:31]} 23. Nab3 {[%emt 0:00:14]} Ng6 {[%emt 0:06:48]} 24. a5 {[%emt 0:04:53]} Ngf4 {[%emt 0:02:13]} 25. c4 {[%emt 0:07:22]} Nxb4 {[%emt 0:11:40]} 26. Qe4 {[%emt 0:00:11]} Re8 {[%emt 0:00:07]} 27. Qxf4 {[%emt 0:00:16]} Qxc4 {[%emt 0:02:21]} 28. Rc1 {[%emt 0:01:07]} Nd5 {[%emt 0:03:49]} 29. Qf3 {[%emt 0:01:33]} 1-0

[Event "GER-chT Youth Countries 2020"]
[Site "Berlin"]
[Date "2020.10.02"]
[Round "5"]
[White "Milare, Tyron"]
[Black "Lange, Jannis"]
[Result "0-1"]
[ECO "D85"]
[WhiteElo "2176"]
[BlackElo "2126"]
[Annotator "ChessBase"]
[PlyCount "84"]
[EventDate "2020.09.30"]
[EventType "team-tourn"]
[EventRounds "7"]
[EventCountry "GER"]
[SourceTitle "playchess.com"]
[Source "ChessBase"]
[SourceQuality "1"]
[TimeControl "30/5400+30:0"]

1. d4 {[%emt 0:00:00]} Nf6 {[%emt 0:00:00]} 2. Nf3 {[%emt 0:00:00]} g6 {[%emt 0:00:00]} 3. c4 {[%emt 0:00:00]} Bg7 {[%emt 0:00:00]} 4. Nc3 {[%emt 0:00:00]} d5 {[%emt 0:00:00]} 5. cxd5 {[%emt 0:00:00]} Nxd5 {[%emt 0:00:00]} 6. e4 {[%emt 0:00:01]} Nxc3 {[%emt 0:00:02]} 7. bxc3 {[%emt 0:00:03]} c5 {[%emt 0:00:07]} 8. Be3 {[%emt 0:00:04]} Qa5 {[%emt 0:00:10]} 9. Qd2 {[%emt 0:00:06]} O-O {[%emt 0:00:22]} 10. Rc1 {[%emt 0:00:46]} Rd8 {[%emt 0:02:07]} 11. d5 {[%emt 0:00:21]} Nc6 {[%emt 0:07:53]} 12. Bd3 {[%emt 0:00:46]} Bg4 {[%emt 0:01:50]} 13. c4 {[%emt 0:10:10]} Nb4 {[%emt 0:18:01]} 14. O-O {[%emt 0:03:16]} Bxf3 {[%emt 0:05:22]} 15. gxf3 {[%emt 0:00:27]} Qxa2 {[%emt 0:01:26]} 16. Qxa2 {[%emt 0:01:40]} Nxa2 {[%emt 0:00:29]} 17. Rb1 {[%emt 0:00:04]} b6 {[%emt 0:00:11]} 18. Bd2 {[%emt 0:00:14]} Rab8 {[%emt 0:12:32]} 19. Bf4 {[%emt 0:03:52]} Nb4 {[%emt 0:16:47]} 20. Bxb8 {[%emt 0:02:00]} Rxb8 {[%emt 0:00:04]} 21. Rxb4 {[%emt 0:00:21]} cxb4 {[%emt 0:00:05]} 22. Bc2 {[%emt 0:00:13]} Be5 {[%emt 0:01:33]} 23. Kg2 Rc8 {[%emt 0:01:21]} 24. Bb3 {[%emt 0:01:27]} Rc5 {[%emt 0:00:40]} 25. f4 {[%emt 0:01:18]} Bxf4 {[%emt 0:01:45]} 26. Ra1 {[%emt 0:00:05]} a5 {[%emt 0:00:41]} 27. h3 {[%emt 0:00:21]} Kg7 {[%emt 0:01:09]} 28. Kf3 {[%emt 0:00:24]} Be5 {[%emt 0:03:32]} 29. Ra2 {[%emt 0:00:59]} Kf6 {[%emt 0:00:52]} 30. Ke3 {[%emt 0:03:03]} g5 {[%emt 0:04:08]} 31. Kd3 {[%emt 1:37:38]} b5 {[%emt 1:33:20]} 32. Rc2 {[%emt 0:00:15]} a4 {[%emt 0:01:52]} 33. cxb5 {[%emt 0:00:33]} Rxc2 {[%emt 0:00:05]} 34. Bxc2 {[%emt 0:02:31]} b3 {[%emt 0:04:06]} 35. Bd1 {[%emt 0:00:05]} Bc7 {[%emt 0:01:14]} 36. Kc4 {[%emt 0:01:36]} b2 {[%emt 0:07:18]} 37. Bc2 {[%emt 0:00:06]} a3 {[%emt 0:00:03]} 38. Bb1 {[%emt 0:00:28]} Ke5 {[%emt 0:00:34]} 39. Kc5 {[%emt 0:00:57]} h5 {[%emt 0:00:59]} 40. b6 {[%emt 0:01:53]} Bd6+ {[%emt 0:01:29]} 41. Kb5 {[%emt 0:04:49]} g4 {[%emt 0:01:44]} 42. hxg4 {[%emt 0:00:10]} h4 {[%emt 0:00:28]} 0-1

[Event "GER-chT Youth Countries 2020"]
[Site "Berlin"]
[Date "2020.10.02"]
[Round "5"]
[White "Nguyen, Huy Dat"]
[Black "Kolb, Tobias"]
[Result "1/2-1/2"]
[ECO "B19"]
[WhiteElo "2166"]
[BlackElo "2268"]
[Annotator "ChessBase"]
[PlyCount "70"]
[EventDate "2020.09.30"]
[EventType "team-tourn"]
[EventRounds "7"]
[EventCountry "GER"]
[SourceTitle "playchess.com"]
[Source "ChessBase"]
[SourceQuality "1"]
[TimeControl "30/5400+30:0"]

1. e4 {[%emt 0:00:00]} c6 {[%emt 0:00:00]} 2. d4 {[%emt 0:00:00]} d5 {[%emt 0:00:00]} 3. Nc3 {[%emt 0:00:00]} dxe4 {[%emt 0:00:00]} 4. Nxe4 {[%emt 0:00:00]} Bf5 {[%emt 0:00:00]} 5. Ng3 {[%emt 0:00:00]} Bg6 {[%emt 0:00:00]} 6. h4 {[%emt 0:00:00]} h6 {[%emt 0:00:02]} 7. Nf3 {[%emt 0:00:00]} Nd7 {[%emt 0:00:03]} 8. h5 {[%emt 0:00:04]} Bh7 {[%emt 0:00:03]} 9. Bd3 {[%emt 0:00:06]} Bxd3 10. Qxd3 {[%emt 0:00:08]} e6 {[%emt 0:00:10]} 11. Bd2 {[%emt 0:00:12]} Qc7 {[%emt 0:00:05]} 12. O-O-O {[%emt 0:04:12]} Ngf6 {[%emt 0:00:36]} 13. Kb1 {[%emt 0:03:07]} O-O-O {[%emt 0:00:13]} 14. Ne4 {[%emt 0:04:57]} c5 {[%emt 0:03:38]} 15. Nc3 a6 {[%emt 0:17:08]} 16. Qe2 {[%emt 0:17:46]} c4 {[%emt 0:15:06]} 17. Ne5 {[%emt 0:04:51]} Nb6 {[%emt 0:05:57]} 18. Be1 {[%emt 0:18:19]} Bd6 {[%emt 0:14:30]} 19. f4 {[%emt 0:03:18]} Kb8 {[%emt 0:00:44]} 20. Bh4 {[%emt 0:03:09]} Rc8 {[%emt 0:01:34]} 21. Bxf6 {[%emt 0:03:29]} gxf6 {[%emt 0:00:07]} 22. Ng4 {[%emt 0:00:08]} Bb4 {[%emt 0:03:14]} 23. Nxf6 {[%emt 0:03:13]} Bxc3 {[%emt 0:00:04]} 24. bxc3 {[%emt 0:00:05]} Na4 {[%emt 0:01:08]} 25. Rh3 {[%emt 0:01:51]} Qxf4 {[%emt 0:14:30]} 26. Rf1 {[%emt 0:06:07]} Qc7 {[%emt 0:04:27]} 27. Qe5 {[%emt 0:00:45]} Qxe5 {[%emt 0:02:29]} 28. Nd7+ {[%emt 0:00:08]} Kc7 {[%emt 0:01:46]} 29. Nxe5 {[%emt 0:00:12]} f5 {[%emt 0:00:38]} 30. Kc1 {[%emt 0:01:42]} Rcg8 {[%emt 0:04:11]} 31. Ng6 {[%emt 1:31:57]} Rh7 {[%emt 1:30:04]} 32. Re3 {[%emt 0:01:31]} Kd6 {[%emt 0:00:50]} 33. Kd2 {[%emt 0:00:58]} Nb6 {[%emt 0:00:36]} 34. Rfe1 {[%emt 0:02:07]} Re8 {[%emt 0:00:20]} 35. Re5 {[%emt 0:03:51]} Rf7 {[%emt 0:02:02]} 1/2-1/2

[Event "GER-chT Youth Countries 2020"]
[Site "Berlin"]
[Date "2020.10.02"]
[Round "5"]
[White "Deuer, Marius"]
[Black "Basovskiy, Jana"]
[Result "1/2-1/2"]
[ECO "D37"]
[WhiteElo "2161"]
[BlackElo "1760"]
[Annotator "ChessBase"]
[PlyCount "81"]
[EventDate "2020.09.30"]
[EventType "team-tourn"]
[EventRounds "7"]
[EventCountry "GER"]
[SourceTitle "playchess.com"]
[Source "ChessBase"]
[SourceQuality "1"]
[TimeControl "30/5400+30:0"]

1. d4 {[%emt 0:00:00]} Nf6 {[%emt 0:00:00]} 2. c4 {[%emt 0:00:00]} e6 {[%emt 0:00:00]} 3. Nf3 {[%emt 0:00:00]} d5 {[%emt 0:00:00]} 4. Nc3 {[%emt 0:00:00]} Be7 {[%emt 0:00:39]} 5. Bf4 {[%emt 0:00:00]} O-O {[%emt 0:00:24]} 6. e3 {[%emt 0:00:03]} b6 {[%emt 0:01:16]} 7. cxd5 {[%emt 0:00:26]} exd5 {[%emt 0:02:09]} 8. Be2 {[%emt 0:03:43]} Bb7 {[%emt 0:03:59]} 9. Rc1 {[%emt 0:00:44]} Nbd7 {[%emt 0:04:50]} 10. h3 {[%emt 0:06:42]} c5 {[%emt 0:06:07]} 11. O-O {[%emt 0:02:28]} Rc8 {[%emt 0:04:18]} 12. Qc2 {[%emt 0:15:00]} Ne4 {[%emt 0:06:28]} 13. dxc5 {[%emt 0:12:07]} Ndxc5 {[%emt 0:07:20]} 14. Qb1 {[%emt 0:07:37]} Ne6 {[%emt 0:04:03]} 15. Be5 {[%emt 0:09:05]} Bf6 {[%emt 0:10:40]} 16. Bxf6 {[%emt 0:25:16]} Qxf6 {[%emt 0:00:11]} 17. Nb5 {[%emt 0:08:07]} a6 {[%emt 0:07:21]} 18. Na7 {[%emt 0:03:44]} Rc5 {[%emt 0:11:48]} 19. b4 {[%emt 0:02:28]} Rxc1 {[%emt 0:00:07]} 20. Rxc1 {[%emt 0:00:04]} Ra8 {[%emt 0:06:07]} 21. Nc6 {[%emt 0:00:07]} Nc3 {[%emt 0:00:09]} 22. Qb2 {[%emt 0:00:19]} Nxe2+ {[%emt 0:00:05]} 23. Qxe2 {[%emt 0:00:03]} Rc8 {[%emt 0:00:08]} 24. b5 {[%emt 0:00:04]} axb5 {[%emt 0:01:38]} 25. Qxb5 {[%emt 0:00:04]} Nd8 {[%emt 0:02:34]} 26. Qxb6 {[%emt 0:04:16]} Rxc6 {[%emt 0:00:38]} 27. Rxc6 {[%emt 0:00:09]} Bxc6 {[%emt 0:00:01]} 28. Nd4 {[%emt 0:00:45]} Bd7 {[%emt 0:05:09]} 29. Qc7 {[%emt 0:00:36]} Be8 {[%emt 0:03:22]} 30. Qc5 {[%emt 0:00:22]} Qe5 {[%emt 0:02:40]} 31. Qc8 {[%emt 1:30:27]} Qe7 {[%emt 1:30:49]} 32. Qa8 {[%emt 0:00:07]} Qd7 {[%emt 0:01:50]} 33. a4 {[%emt 0:01:03]} Ne6 {[%emt 0:00:49]} 34. a5 {[%emt 0:00:31]} Nxd4 {[%emt 0:01:11]} 35. exd4 {[%emt 0:00:01]} Qc6 {[%emt 0:00:27]} 36. Qb8 {[%emt 0:00:04]} Kf8 {[%emt 0:01:14]} 37. Qb4+ {[%emt 0:00:01]} Kg8 {[%emt 0:00:10]} 38. Qb8 {[%emt 0:00:02]} Qb5 {[%emt 0:00:51]} 39. Qd8 {[%emt 0:01:43]} Qd7 {[%emt 0:06:18]} 40. Qb8 {[%emt 0:00:10]} Qb5 {[%emt 0:00:53]} 41. Qd8 {[%emt 0:01:08]} 1/2-1/2